fUST/lending_fUST_20250716
["ID","MTS","AMOUNT","RATE_DAILY","PERIOD"]
[372461881,1752653246250,-300.0,0.00019177,2]
[372461882,1752653246272,-300.0,0.00019177,2]
[372461883,1752653246293,-300.0,0.00019177,2]
[372461884,1752653246314,-300.0,0.00019177,2]
[372461885,1752653246336,-500.0,0.00019177,2]
[372461886,1752653246361,-500.0,0.00019177,2]
[372461887,1752653246383,-500.0,0.00019177,2]
[372461888,1752653246405,-500.0,0.00019177,2]
[372461889,1752653246426,-500.0,0.00019177,2]
[372461890,1752653246447,-500.0,0.00019177,2]
[372461891,1752653246470,-500.0,0.00019177,2]
[372461892,1752653246493,-188.90811871,0.00019177,2]
[372461893,1752653246516,-500.0,0.00019177,2]
[372461894,1752653246538,-223.86467968,0.00019177,2]
[372461895,1752653246559,-500.0,0.00019177,2]
[372461896,1752653246583,-500.0,0.00019177,2]
[372461897,1752653246604,-500.0,0.00019177,2]
[372461898,1752653246628,-500.0,0.00019177,2]
[372461899,1752653246662,-95.55052465,0.00019177,2]
[372461900,1752653249107,-404.44947535,0.00019177,2]
[372461901,1752653249130,-491.50980613,0.00019177,2]
[372461902,1752653249152,-500.0,0.00019177,2]
[372461903,1752653249173,-408.89544618,0.00019177,2]
[372461904,1752653249195,-500.0,0.00019177,2]
[372461905,1752653249219,-500.0,0.00019177,2]
[372461906,1752653249240,-500.0,0.00019177,2]
[372461907,1752653249263,-620.0,0.00019177,2]
[372461908,1752653249283,-500.0,0.00019177,2]
[372461909,1752653249305,-500.0,0.00019177,2]
[372461910,1752653249326,-500.0,0.00019177,2]
[372461911,1752653249346,-500.0,0.00019177,2]
[372461912,1752653249368,-300.0,0.00019177,2]
[372461913,1752653249392,-500.0,0.00019177,2]
[372461914,1752653249414,-500.0,0.00019177,2]
[372461915,1752653249435,-300.0,0.00019177,2]
[372461916,1752653249458,-552.67,0.00019178,2]
[372461917,1752653249479,-529.86,0.00019178,2]
[372461918,1752653249500,-460.0,0.00019178,2]
[372461919,1752653249521,-460.0,0.00019178,2]
[372461920,1752653249542,-338.84519471,0.00019178,2]
[372461921,1752653253083,-121.15480529,0.00019178,2]
[372461922,1752653253107,-460.0,0.00019178,2]
[372461923,1752653253128,-460.0,0.00019178,2]
[372461924,1752653253148,-78.09826141,0.00019178,2]
[372461964,1752653432649,-578.70090768,0.000189,2]
[372461966,1752653432661,-1891.11356215,0.000189,2]
[372461968,1752653432671,-300.0,0.00019177,2]
[372461970,1752653432681,-300.0,0.00019177,2]
[372461972,1752653432690,-300.0,0.00019177,2]
[372461974,1752653432700,-300.0,0.00019177,2]
[372461976,1752653432710,-397.16500402,0.00019177,2]
[372462023,1752653439023,-802.83499598,0.00019177,2]
[372462024,1752653439033,-300.0,0.00019177,2]
[372462025,1752653439042,-460.0,0.00019178,2]
[372462026,1752653439055,-385.21874501,0.00019178,2]
[372462027,1752653439196,-460.0,0.00019178,2]
[372462028,1752653439206,-460.0,0.00019178,2]
[372462029,1752653439216,-460.0,0.00019178,2]
[372462030,1752653439225,-460.0,0.00019178,2]
[372462031,1752653439236,-460.0,0.00019178,2]
[372462032,1752653439245,-460.0,0.00019178,2]
[372462033,1752653439254,-460.0,0.00019178,2]
[372462034,1752653439264,-460.0,0.00019178,2]
[372462035,1752653439273,-460.0,0.00019178,2]
[372462036,1752653439283,-460.0,0.00019178,2]
[372462037,1752653439293,-460.0,0.00019178,2]
[372462038,1752653439302,-460.0,0.00019178,2]
[372462039,1752653439312,-460.0,0.00019178,2]
[372462040,1752653439322,-460.0,0.00019178,2]
[372462041,1752653439332,-330.75949218,0.00019178,2]
[372462042,1752653439342,-460.0,0.00019178,2]
[372462043,1752653439351,-524.84,0.00019178,2]
[372462044,1752653439361,-460.0,0.00019178,2]
[372462045,1752653439371,-1026.62,0.00019178,2]
[372462046,1752653439381,-460.0,0.00019178,2]
[372462047,1752653439390,-460.0,0.00019178,2]
[372462048,1752653439399,-461.40727749,0.00019178,2]
[372462049,1752653439409,-460.0,0.00019178,2]
[372462050,1752653439419,-721.77,0.00019178,2]
[372462051,1752653439429,-460.0,0.00019178,2]
[372462052,1752653439439,-460.0,0.00019178,2]
[372462053,1752653439448,-460.0,0.00019178,2]
[372462054,1752653439458,-460.0,0.00019178,2]
[372462055,1752653439468,-460.0,0.00019178,2]
[372462056,1752653439478,-271.35874253,0.00019178,2]
[372462057,1752653439487,-460.0,0.00019178,2]
[372462058,1752653439497,-460.0,0.00019178,2]
[372462059,1752653439507,-460.0,0.00019178,2]
[372462060,1752653439516,-571.22,0.00019178,2]
[372462061,1752653439525,-460.0,0.00019178,2]
[372462062,1752653439535,-460.0,0.00019178,2]
[372462063,1752653439544,-460.0,0.00019178,2]
[372462064,1752653439554,-460.0,0.00019178,2]
[372462065,1752653439563,-460.0,0.00019178,2]
[372462066,1752653439572,-460.0,0.00019178,2]
[372462067,1752653439582,-460.0,0.00019178,2]
[372462068,1752653439592,-1661.37,0.00019178,2]
[372462069,1752653439602,-460.55332078,0.00019178,2]
[372462070,1752653439612,-460.0,0.00019178,2]
[372462071,1752653439621,-460.0,0.00019178,2]
[372462072,1752653439632,-460.0,0.00019178,2]
[372462073,1752653439642,-460.0,0.00019178,2]
[372462074,1752653439651,-460.0,0.00019178,2]
[372462075,1752653439661,-417.52800515,0.00019178,2]
[372462076,1752653439671,-362.86269337,0.00019178,2]
[372462077,1752653439682,-460.0,0.00019178,2]
[372462078,1752653439692,-460.0,0.00019178,2]
[372462079,1752653439701,-460.0,0.00019178,2]
[372462080,1752653439711,-499.48,0.00019178,2]
[372462081,1752653439721,-460.0,0.00019178,2]
[372462082,1752653439731,-460.0,0.00019178,2]
[372462083,1752653439740,-460.0,0.00019178,2]
[372462084,1752653439750,-460.0,0.00019178,2]
[372462085,1752653439759,-561.15,0.00019178,2]
[372462086,1752653439769,-460.0,0.00019178,2]
[372462087,1752653439778,-460.0,0.00019178,2]
[372462088,1752653439788,-460.0,0.00019178,2]
[372462089,1752653439798,-943.82,0.00019178,2]
[372462090,1752653439808,-460.0,0.00019178,2]
[372462091,1752653439817,-460.0,0.00019178,2]
[372462092,1752653439827,-460.0,0.00019178,2]
[372462093,1752653439838,-636.03,0.00019178,2]
[372462094,1752653439848,-460.0,0.00019178,2]
[372462095,1752653439859,-491.63,0.00019178,2]
[372462096,1752653439868,-461.57358295,0.00019178,2]
[372462097,1752653439879,-500.0,0.00019178,2]
[372462098,1752653439888,-468.93527625,0.00019178,2]
[372462099,1752653439898,-500.0,0.00019178,2]
[372462100,1752653439907,-500.0,0.00019178,2]
[372462101,1752653439918,-500.0,0.00019178,2]
[372462102,1752653439927,-500.0,0.00019178,2]
[372462103,1752653439936,-460.0,0.00019178,2]
[372462104,1752653439946,-326.58779432,0.00019178,2]
[372462105,1752653439955,-384.23310567,0.00019178,2]
[372462106,1752653439965,-460.0,0.00019178,2]
[372462107,1752653439974,-460.0,0.00019178,2]
[372462108,1752653439983,-460.0,0.00019178,2]
[372462109,1752653439992,-460.0,0.00019178,2]
[372462110,1752653440002,-460.0,0.00019178,2]
[372462111,1752653440011,-460.0,0.00019178,2]
[372462112,1752653440020,-381.90173859,0.00019178,2]
[372462113,1752653440030,-460.0,0.00019178,2]
[372462115,1752653440040,-460.0,0.00019178,2]
[372462116,1752653440051,-335.54956013,0.00019178,2]
[372462117,1752653440061,-460.0,0.00019178,2]
[372462118,1752653440071,-460.0,0.00019178,2]
[372462119,1752653440080,-460.0,0.00019178,2]
[372462120,1752653440091,-500.0,0.00019178,2]
[372462121,1752653440100,-460.0,0.00019178,2]
[372462122,1752653440110,-460.0,0.00019178,2]
[372462123,1752653440120,-460.0,0.00019178,2]
[372462124,1752653440131,-460.0,0.00019178,2]
[372462125,1752653440142,-856.89,0.00019178,2]
[372462126,1752653440151,-460.0,0.00019178,2]
[372462127,1752653440160,-460.0,0.00019178,2]
[372462128,1752653440170,-460.0,0.00019178,2]
[372462130,1752653440179,-460.0,0.00019178,2]
[372462131,1752653440188,-507.73995168,0.00019178,2]
[372462132,1752653440198,-460.0,0.00019451,2]
[372462133,1752653440207,-460.0,0.00019451,2]
[372462134,1752653440216,-460.0,0.00019451,2]
[372462135,1752653440226,-460.0,0.00019451,2]
[372462136,1752653440235,-460.0,0.00019451,2]
[372462137,1752653440245,-460.0,0.00019451,2]
[372462138,1752653440255,-500.0,0.00019451,2]
[372462139,1752653440265,-302.77690754,0.00019451,2]
[372462140,1752653440275,-460.0,0.00019451,2]
[372462141,1752653440284,-460.0,0.00019451,2]
[372462142,1752653440294,-460.0,0.00019452,2]
[372462143,1752653440303,-460.0,0.00019452,2]
[372462144,1752653440313,-290.9613231,0.00019452,2]
[372462145,1752653440323,-460.0,0.00019452,2]
[372462146,1752653440332,-460.0,0.00019452,2]
[372462147,1752653440341,-460.0,0.00019452,2]
[372462148,1752653440351,-460.0,0.00019452,2]
[372462149,1752653440360,-460.0,0.00019452,2]
[372462150,1752653440369,-1026.62,0.00019452,2]
[372462151,1752653440380,-460.0,0.00019452,2]
[372462152,1752653440390,-548.40577261,0.00019452,2]
[372462153,1752653440399,-721.77,0.00019452,2]
[372462154,1752653440408,-460.0,0.00019452,2]
[372462155,1752653440418,-460.0,0.00019452,2]
[372462156,1752653440428,-460.0,0.00019452,2]
[372462157,1752653440437,-460.0,0.00019452,2]
[372462158,1752653440447,-460.0,0.00019452,2]
[372462159,1752653440457,-460.0,0.00019452,2]
[372462160,1752653440467,-460.0,0.00019452,2]
[372462161,1752653440476,-571.22,0.00019452,2]
[372462162,1752653440485,-461.05129043,0.00019452,2]
[372462163,1752653440495,-460.0,0.00019452,2]
[372462164,1752653440504,-460.0,0.00019452,2]
[372462165,1752653440513,-460.0,0.00019452,2]
[372462166,1752653440523,-502.81,0.00019452,2]
[372462167,1752653440532,-460.0,0.00019452,2]
[372462168,1752653440542,-1661.37,0.00019452,2]
[372462169,1752653440552,-460.0,0.00019452,2]
[372462170,1752653440561,-460.0,0.00019452,2]
[372462171,1752653440571,-460.0,0.00019452,2]
[372462172,1752653440580,-460.0,0.00019452,2]
[372462173,1752653440589,-460.0,0.00019452,2]
[372462174,1752653440599,-499.48,0.00019452,2]
[372462175,1752653440608,-460.0,0.00019452,2]
[372462176,1752653440617,-460.0,0.00019452,2]
[372462177,1752653440627,-274.53,0.00019452,2]
[372462178,1752653440638,-460.0,0.00019452,2]
[372462179,1752653440647,-460.0,0.00019452,2]
[372462180,1752653440656,-943.82,0.00019452,2]
[372462181,1752653440666,-460.0,0.00019452,2]
[372462182,1752653440675,-636.03,0.00019452,2]
[372462183,1752653440685,-460.0,0.00019452,2]
[372462184,1752653440694,-491.63,0.00019452,2]
[372462185,1752653440704,-460.0,0.00019452,2]
[372462186,1752653440714,-460.0,0.00019452,2]
[372462187,1752653440723,-463.7447674,0.00019452,2]
[372462188,1752653440734,-460.0,0.00019452,2]
[372462189,1752653440744,-460.0,0.00019452,2]
[372462190,1752653440753,-460.0,0.00019452,2]
[372462191,1752653440763,-460.0,0.00019452,2]
[372462192,1752653440772,-460.0,0.00019452,2]
[372462193,1752653440782,-460.0,0.00019452,2]
[372462194,1752653440792,-460.0,0.00019452,2]
[372462195,1752653440802,-856.89,0.00019452,2]
[372462196,1752653440812,-460.0,0.00019452,2]
[372462197,1752653440821,-460.0,0.00019452,2]
[372462198,1752653440831,-460.0,0.00019725,2]
[372462199,1752653440840,-460.0,0.00019725,2]
[372462200,1752653440850,-460.0,0.00019725,2]
[372462201,1752653440859,-460.0,0.00019725,2]
[372462202,1752653440869,-460.0,0.00019725,2]
[372462203,1752653440880,-500.0,0.00019725,2]
[372462204,1752653440890,-460.0,0.00019725,2]
[372462205,1752653440899,-460.0,0.00019726,2]
[372462206,1752653440909,-460.0,0.00019726,2]
[372462207,1752653440919,-470.960462,0.00019726,2]
[372462208,1752653440929,-460.0,0.00019726,2]
[372462209,1752653440938,-331.19088156,0.00019726,2]
[372462210,1752653440948,-1026.62,0.00019726,2]
[372462211,1752653440957,-721.77,0.00019726,2]
[372462212,1752653440967,-460.0,0.00019726,2]
[372462213,1752653440976,-461.81298123,0.00019726,2]
[372462214,1752653440986,-460.0,0.00019726,2]
[372462215,1752653440997,-460.0,0.00019726,2]
[372462216,1752653441007,-460.0,0.00019726,2]
[372462217,1752653441016,-571.22,0.00019726,2]
[372462218,1752653441026,-460.0,0.00019726,2]
[372462219,1752653441036,-460.0,0.00019726,2]
[372462220,1752653441046,-460.0,0.00019726,2]
[372462222,1752653441059,-1661.37,0.00019726,2]
[372462224,1752653441068,-460.0,0.00019726,2]
[372462226,1752653441078,-460.0,0.00019726,2]
[372462228,1752653441088,-213.88,0.00019726,2]
[372462230,1752653441097,-460.0,0.00019726,2]
[372462232,1752653441107,-499.48,0.00019726,2]
[372462234,1752653441116,-163.82703745,0.00019726,2]
[372462236,1752653441126,-460.0,0.00019726,2]
[372462238,1752653441138,-460.0,0.00019726,2]
[372462240,1752653441147,-943.82,0.00019726,2]
[372462242,1752653441156,-568.04821469,0.00019726,2]
[372462244,1752653441166,-636.03,0.00019726,2]
[372462246,1752653441176,-460.0,0.00019726,2]
[372462248,1752653441186,-491.63,0.00019726,2]
[372462250,1752653441196,-598.49989614,0.00019726,2]
[372462252,1752653441206,-460.0,0.00019726,2]
[372462254,1752653441215,-460.0,0.00019726,2]
[372462256,1752653441225,-460.0,0.00019726,2]
[372462258,1752653441235,-460.0,0.00019726,2]
[372462260,1752653441244,-460.0,0.00019726,2]
[372462262,1752653441254,-460.0,0.00019726,2]
[372462264,1752653441264,-460.0,0.00019726,2]
[372462266,1752653441273,-856.89,0.00019726,2]
[372462268,1752653441283,-460.0,0.00019726,2]
[372462270,1752653441292,-460.0,0.00019726,2]
[372462272,1752653441302,-501.4774378,0.00019757,2]
[372462274,1752653441311,-233.26935366,0.00019762,2]
[372462276,1752653441321,-535.57,0.000198,2]
[372462278,1752653441331,-500.0,0.00019819,2]
[372462280,1752653441340,-460.0,0.00019999,2]
[372462282,1752653441350,-460.0,0.00019999,2]
[372462284,1752653441359,-460.0,0.00019999,2]
[372462286,1752653441368,-460.0,0.00019999,2]
[372462288,1752653441379,-460.0,0.00019999,2]
[372462290,1752653441389,-460.0,0.0002,2]
[372462292,1752653441398,-460.0,0.0002,2]
[372462294,1752653441408,-460.0,0.0002,2]
[372462296,1752653441418,-1026.62,0.0002,2]
[372462298,1752653441428,-721.77,0.0002,2]
[372462300,1752653441437,-460.0,0.0002,2]
[372462302,1752653441446,-460.0,0.0002,2]
[372462304,1752653441456,-460.0,0.0002,2]
[372462306,1752653441465,-460.0,0.0002,2]
[372462307,1752653441475,-571.22,0.0002,2]
[372462309,1752653441484,-460.0,0.0002,2]
[372462311,1752653441494,-460.0,0.0002,2]
[372462313,1752653441504,-1661.37,0.0002,2]
[372462315,1752653441513,-460.0,0.0002,2]
[372462317,1752653441523,-460.0,0.0002,2]
[372462319,1752653441532,-460.0,0.0002,2]
[372462321,1752653441542,-499.48,0.0002,2]
[372462323,1752653441551,-460.0,0.0002,2]
[372462325,1752653441561,-386.6537927,0.0002,2]
[372462327,1752653441570,-943.82,0.0002,2]
[372462329,1752653441580,-636.03,0.0002,2]
[372462331,1752653441591,-460.0,0.0002,2]
[372462333,1752653441601,-491.63,0.0002,2]
[372462335,1752653441611,-460.0,0.0002,2]
[372462337,1752653441620,-460.0,0.0002,2]
[372462339,1752653441631,-460.0,0.0002,2]
[372462341,1752653441640,-460.0,0.0002,2]
[372462343,1752653441650,-460.0,0.0002,2]
[372462344,1752653441660,-460.0,0.0002,2]
[372462345,1752653441670,-150.69,0.0002,2]
[372462346,1752653441679,-856.89,0.0002,2]
[372462347,1752653441689,-309.54750685,0.0002,2]
[372462348,1752653441699,-460.0,0.0002,2]
[372462349,1752653441709,-333.516268,0.00020187,2]
[372462350,1752653441718,-501.48525165,0.00020188,2]
[372462351,1752653441728,-827.54,0.00020263,3]
[372462352,1752653441739,-163.31044524,0.00020272,2]
[372462353,1752653441748,-460.0,0.00020273,2]
[372462354,1752653441757,-460.0,0.00020273,2]
[372462356,1752653441860,-460.0,0.00020273,2]
[372462357,1752653441870,-460.0,0.00020273,2]
[372462358,1752653441880,-1026.62,0.00020273,2]
[372462359,1752653441890,-721.77,0.00020273,2]
[372462360,1752653441900,-460.0,0.00020273,2]
[372462361,1752653441910,-460.0,0.00020273,2]
[372462362,1752653441920,-460.0,0.00020273,2]
[372462363,1752653441930,-152.81602447,0.00020273,2]
[372462364,1752653441939,-571.22,0.00020273,2]
[372462365,1752653441949,-460.0,0.00020273,2]
[372462366,1752653441958,-460.0,0.00020273,2]
[372462367,1752653441967,-1661.37,0.00020273,2]
[372462368,1752653441977,-460.0,0.00020273,2]
[372462369,1752653441987,-460.0,0.00020273,2]
[372462370,1752653441996,-460.0,0.00020273,2]
[372462371,1752653442007,-460.0,0.00020273,2]
[372462372,1752653442016,-499.48,0.00020273,2]
[372462373,1752653442026,-510.28,0.00020273,2]
[372462374,1752653442037,-405.99,0.00020273,2]
[372462375,1752653442046,-943.82,0.00020273,2]
[372462376,1752653442059,-636.03,0.00020273,2]
[372462377,1752653442069,-460.0,0.00020273,2]
[372462378,1752653442078,-460.0,0.00020273,2]
[372462379,1752653442088,-491.63,0.00020273,2]
[372462380,1752653442097,-460.0,0.00020273,2]
[372462381,1752653442107,-460.0,0.00020273,2]
[372462382,1752653442117,-460.0,0.00020273,2]
[372462383,1752653442126,-461.0172994,0.00020273,2]
[372462384,1752653442137,-460.0,0.00020273,2]
[372462385,1752653442146,-460.0,0.00020273,2]
[372462386,1752653442156,-460.0,0.00020273,2]
[372462387,1752653442165,-856.89,0.00020273,2]
[372462388,1752653442174,-460.0,0.00020273,2]
[372462389,1752653442184,-500.0,0.00020365,2]
[372462390,1752653442193,-460.0,0.00020366,2]
[372462391,1752653442203,-460.0,0.00020366,2]
[372462392,1752653442212,-162.24407389,0.00020366,2]
[372462393,1752653442222,-1000.0,0.00020367,2]
[372462394,1752653442231,-160.0,0.00020467,2]
[372462395,1752653442241,-12605.49131908,0.00020467,2]
[372462396,1752653442250,-214.40824756,0.00020467,2]
[372462397,1752653442260,-160.0,0.00020467,2]
[372462398,1752653442269,-551.68,0.00020482,3]
[372462399,1752653442279,-275.84,0.00020482,3]
[372462400,1752653442288,-838.99048831,0.00020492,2]
[372462401,1752653442298,-468.75,0.00020492,2]
[372462402,1752653442307,-520.85416667,0.00020492,2]
[372462403,1752653442317,-160.0,0.00020492,2]
[372462404,1752653442326,-249.13,0.00020537,3]
[372462405,1752653442336,-747.39,0.00020537,3]
[372462406,1752653442345,-460.0,0.00020547,2]
[372462407,1752653442355,-460.0,0.00020547,2]
[372462408,1752653442364,-460.0,0.00020547,2]
[372462409,1752653442374,-460.0,0.00020547,2]
[372462410,1752653442384,-1026.62,0.00020547,2]
[372462411,1752653442394,-721.77,0.00020547,2]
[372462412,1752653442403,-460.0,0.00020547,2]
[372462413,1752653442413,-574.03,0.00020547,2]
[372462414,1752653442422,-571.22,0.00020547,2]
[372462415,1752653442432,-460.0,0.00020547,2]
[372462416,1752653442441,-460.0,0.00020547,2]
[372462417,1752653442451,-1661.37,0.00020547,2]
[372462418,1752653442464,-460.0,0.00020547,2]
[372462419,1752653442480,-460.0,0.00020547,2]
[372462420,1752653442490,-460.0,0.00020547,2]
[372462421,1752653442500,-460.0,0.00020547,2]
[372462422,1752653442509,-499.48,0.00020547,2]
[372462423,1752653442519,-943.82,0.00020547,2]
[372462424,1752653442528,-636.03,0.00020547,2]
[372462425,1752653442538,-460.0,0.00020547,2]
[372462426,1752653442547,-491.63,0.00020547,2]
[372462427,1752653442557,-460.0,0.00020547,2]
[372462428,1752653442567,-460.0,0.00020547,2]
[372462429,1752653442576,-460.0,0.00020547,2]
[372462430,1752653442586,-460.0,0.00020547,2]
[372462431,1752653442595,-856.89,0.00020547,2]
[372462432,1752653442604,-460.0,0.00020547,2]
[372462433,1752653442614,-567.68563223,0.00020821,2]
[372462434,1752653442624,-460.0,0.00020821,2]
[372462435,1752653442635,-460.0,0.00020821,2]
[372462436,1752653442644,-460.0,0.00020821,2]
[372462437,1752653442654,-1026.62,0.00020821,2]
[372462438,1752653442663,-721.77,0.00020821,2]
[372462439,1752653442673,-460.0,0.00020821,2]
[372462440,1752653442682,-571.22,0.00020821,2]
[372462441,1752653442692,-178.7,0.00020821,2]
[372462442,1752653442701,-303.47,0.00020821,2]
[372462443,1752653442711,-1661.37,0.00020821,2]
[372462444,1752653442721,-460.0,0.00020821,2]
[372462445,1752653442730,-460.0,0.00020821,2]
[372462446,1752653442739,-577.92,0.00020821,2]
[372462447,1752653442749,-460.0,0.00020821,2]
[372462448,1752653442758,-499.48,0.00020821,2]
[372462449,1752653442767,-943.82,0.00020821,2]
[372462450,1752653442776,-636.03,0.00020821,2]
[372462451,1752653442786,-460.0,0.00020821,2]
[372462452,1752653442796,-491.63,0.00020821,2]
[372462453,1752653442806,-460.0,0.00020821,2]
[372462454,1752653442815,-460.0,0.00020821,2]
[372462455,1752653442825,-460.0,0.00020821,2]
[372462456,1752653442835,-460.0,0.00020821,2]
[372462457,1752653442845,-856.89,0.00020821,2]
[372462458,1752653442855,-460.0,0.00020821,2]
[372462459,1752653442864,-1228.0,0.00020898,2]
[372462460,1752653442874,-420.0,0.00020899,2]
[372462461,1752653442884,-263.0,0.00020899,2]
[372462462,1752653442893,-318.0,0.00020899,2]
[372462463,1752653442903,-1500.0,0.00020915,2]
[372462464,1752653442913,-160.0,0.00020976,2]
[372462465,1752653442922,-35000.0,0.00021,2]
[372462466,1752653442932,-480.0,0.00021,2]
[372462467,1752653442941,-178.36253337,0.0002102,2]
[372462468,1752653442951,-412.303,0.0002102,2]
[372462469,1752653442960,-274.31,0.00021095,2]
[372462470,1752653442970,-173.48,0.00021095,2]
[372462471,1752653442979,-201.43,0.00021095,2]
[372462472,1752653442988,-1026.62,0.00021095,2]
[372462473,1752653442997,-721.77,0.00021095,2]
[372462474,1752653443007,-460.0,0.00021095,2]
[372462475,1752653443017,-571.22,0.00021095,2]
[372462476,1752653443026,-1661.37,0.00021095,2]
[372462477,1752653443035,-460.0,0.00021095,2]
[372462479,1752653443044,-460.0,0.00021095,2]
[372462481,1752653443056,-460.0,0.00021095,2]
[372462483,1752653443066,-499.48,0.00021095,2]
[372462484,1752653443075,-943.82,0.00021095,2]
[372462485,1752653443085,-636.03,0.00021095,2]
[372462486,1752653443095,-460.0,0.00021095,2]
[372462487,1752653443104,-491.63,0.00021095,2]
[372462488,1752653443114,-460.0,0.00021095,2]
[372462490,1752653443123,-460.0,0.00021095,2]
[372462492,1752653443134,-460.0,0.00021095,2]
[372462493,1752653443144,-460.0,0.00021095,2]
[372462494,1752653443153,-856.89,0.00021095,2]
[372462495,1752653443162,-460.0,0.00021095,2]
[372462496,1752653443172,-1026.62,0.00021369,2]
[372462497,1752653443182,-721.77,0.00021369,2]
[372462498,1752653443191,-460.0,0.00021369,2]
[372462499,1752653443201,-571.22,0.00021369,2]
[372462500,1752653443211,-1661.37,0.00021369,2]
[372462501,1752653443220,-460.0,0.00021369,2]
[372462502,1752653443230,-460.0,0.00021369,2]
[372462503,1752653443239,-460.0,0.00021369,2]
[372462504,1752653443249,-499.48,0.00021369,2]
[372462505,1752653443259,-943.82,0.00021369,2]
[372462506,1752653443268,-636.03,0.00021369,2]
[372462507,1752653443277,-548.45,0.00021369,2]
[372462508,1752653443287,-491.63,0.00021369,2]
[372462509,1752653443296,-460.0,0.00021369,2]
[372462510,1752653443306,-460.0,0.00021369,2]
[372462511,1752653443315,-460.0,0.00021369,2]
[372462512,1752653443325,-460.0,0.00021369,2]
[372462513,1752653443334,-856.89,0.00021369,2]
[372462514,1752653443344,-469.14,0.00021369,2]
[372462515,1752653443353,-524.69984856,0.00021463,2]
[372462516,1752653443363,-260.0,0.00021524,2]
[372462517,1752653443372,-1026.62,0.00021643,2]
[372462518,1752653443382,-721.77,0.00021643,2]
[372462519,1752653443392,-460.0,0.00021643,2]
[372462520,1752653443401,-571.22,0.00021643,2]
[372462522,1752653443410,-1661.37,0.00021643,2]
[372462524,1752653443420,-460.0,0.00021643,2]
[372462525,1752653443429,-460.0,0.00021643,2]
[372462526,1752653443439,-210.21417241,0.00021643,2]
[372462527,1752653443448,-499.48,0.00021643,2]
[372462528,1752653443458,-943.82,0.00021643,2]
[372462529,1752653443467,-636.03,0.00021643,2]
[372462530,1752653443477,-491.63,0.00021643,2]
[372462531,1752653443487,-460.0,0.00021643,2]
[372462532,1752653443497,-460.0,0.00021643,2]
[372462533,1752653443507,-460.0,0.00021643,2]
[372462534,1752653443522,-460.0,0.00021643,2]
[372462535,1752653443532,-856.89,0.00021643,2]
[372462536,1752653443542,-500.0,0.00021686,2]
[372462538,1752653443551,-535.57,0.000217,2]
[372462539,1752653443560,-1042.15358219,0.00021825,2]
[372462541,1752653443569,-1103.36,0.00021852,3]
[372462543,1752653443579,-551.68,0.00021852,3]
[372462544,1752653443588,-498.26,0.00021907,3]
[372462546,1752653443597,-1026.62,0.00021917,2]